[Event "*** Titled Tuesday Blitz"]
[Site "Chess.com"]
[Date "2020.10.20"]
[Round "1"]
[White "ExtremeLearner"]
[Black "German_Bazeev"]
[Result "0-1"]
[WhiteElo "2344"]
[BlackElo "2700"]
[TimeControl "180+1"]
[EndTime "10:05:56 PDT"]
[Termination "German_Bazeev won by resignation"]

1. d4 {[%clk 0:02:58.2]} 1... Nf6 {[%clk 0:02:59.6]} 2. Nf3 {[%clk 0:02:53.9]}
2... e6 {[%clk 0:02:58.8]} 3. g3 {[%clk 0:02:54.2]} 3... b5 {[%clk 0:02:57.5]}
4. Bg2 {[%clk 0:02:51]} 4... Bb7 {[%clk 0:02:57.4]} 5. O-O {[%clk 0:02:50.1]}
5... c5 {[%clk 0:02:52.3]} 6. a4 {[%clk 0:02:42.2]} 6... b4 {[%clk 0:02:50.5]}
7. dxc5 {[%clk 0:02:37.9]} 7... Bxc5 {[%clk 0:02:51.4]} 8. Nbd2 {[%clk
0:02:36.9]} 8... d5 {[%clk 0:02:41.7]} 9. Nb3 {[%clk 0:02:32]} 9... Be7 {[%clk
0:02:41]} 10. Nfd4 {[%clk 0:02:22.9]} 10... O-O {[%clk 0:02:36]} 11. Bf4 {[%clk
0:02:17.5]} 11... Nbd7 {[%clk 0:02:33.5]} 12. Bg5 {[%clk 0:02:01]} 12... Rc8
{[%clk 0:02:29.4]} 13. h4 {[%clk 0:01:57.5]} 13... Ne5 {[%clk 0:02:28.9]} 14.
Qc1 {[%clk 0:01:42.7]} 14... Nc4 {[%clk 0:02:18.4]} 15. Rd1 {[%clk 0:01:40.6]}
15... a6 {[%clk 0:02:05.4]} 16. e3 {[%clk 0:01:33.9]} 16... Qc7 {[%clk
0:02:04.6]} 17. Bf1 {[%clk 0:01:20.2]} 17... h6 {[%clk 0:02:03.8]} 18. Bxf6
{[%clk 0:01:19.4]} 18... Bxf6 {[%clk 0:02:04.7]} 19. Nd2 {[%clk 0:00:50.7]}
19... Nd6 {[%clk 0:02:02.2]} 20. Bd3 {[%clk 0:00:24.9]} 20... g6 {[%clk
0:01:55.4]} 21. N2b3 {[%clk 0:00:17.1]} 21... e5 {[%clk 0:01:52.8]} 22. Ne2
{[%clk 0:00:07.4]} 22... e4 {[%clk 0:01:52.7]} 23. Qd2 {[%clk 0:00:05.1]} 23...
exd3 {[%clk 0:01:47.6]} 24. cxd3 {[%clk 0:00:05.5]} 24... a5 {[%clk 0:01:38.7]}
25. e4 {[%clk 0:00:05.5]} 25... dxe4 {[%clk 0:01:37.3]} 26. Qxh6 {[%clk
0:00:05.8]} 26... Nf5 {[%clk 0:01:35]} 27. Qf4 {[%clk 0:00:05]} 27... Qxf4
{[%clk 0:01:34.3]} 28. Nxf4 {[%clk 0:00:05.9]} 28... Bxb2 {[%clk 0:01:33.3]} 29.
Rab1 {[%clk 0:00:04.8]} 29... Bc3 {[%clk 0:01:32.8]} 30. dxe4 {[%clk 0:00:04.7]}
30... Bxe4 {[%clk 0:01:32.5]} 31. Rd7 {[%clk 0:00:02.4]} 31... Bxb1 {[%clk
0:01:31.4]} 32. Nd5 {[%clk 0:00:02.9]} 32... Bg7 {[%clk 0:01:30.2]} 0-1

[Event "*** Titled Tuesday Blitz"]
[Site "Chess.com"]
[Date "2020.10.20"]
[Round "1"]
[White "exoticprincess"]
[Black "ErikRonka"]
[Result "1-0"]
[WhiteElo "2862"]
[BlackElo "2426"]
[TimeControl "180+1"]
[EndTime "10:05:57 PDT"]
[Termination "exoticprincess won by resignation"]

1. b3 {[%clk 0:03:00.8]} 1... e5 {[%clk 0:02:57.8]} 2. Bb2 {[%clk 0:02:59.9]}
2... Nc6 {[%clk 0:02:58.4]} 3. Nf3 {[%clk 0:02:59.7]} 3... e4 {[%clk 0:02:52.2]}
4. Nd4 {[%clk 0:02:59]} 4... Nf6 {[%clk 0:02:49.7]} 5. e3 {[%clk 0:02:57.6]}
5... Nxd4 {[%clk 0:02:42.5]} 6. Bxd4 {[%clk 0:02:56.7]} 6... Be7 {[%clk
0:02:38.7]} 7. c4 {[%clk 0:02:55.6]} 7... O-O {[%clk 0:02:38.1]} 8. Nc3 {[%clk
0:02:54.9]} 8... d6 {[%clk 0:02:24.1]} 9. Rc1 {[%clk 0:02:51.8]} 9... Bf5 {[%clk
0:02:23.3]} 10. Be2 {[%clk 0:02:48.3]} 10... Re8 {[%clk 0:02:21]} 11. g4 {[%clk
0:02:47.8]} 11... Bg6 {[%clk 0:02:04.7]} 12. h4 {[%clk 0:02:47.3]} 12... h6
{[%clk 0:02:02.2]} 13. g5 {[%clk 0:02:46.4]} 13... hxg5 {[%clk 0:01:39.6]} 14.
hxg5 {[%clk 0:02:47.3]} 14... Nh7 {[%clk 0:01:40]} 15. Bh5 {[%clk 0:02:43.7]}
15... Bxg5 {[%clk 0:01:37.5]} 16. Bxg6 {[%clk 0:02:42.2]} 16... fxg6 {[%clk
0:01:38.4]} 17. Qg4 {[%clk 0:02:41.6]} 17... c5 {[%clk 0:01:27.1]} 18. Nxe4
{[%clk 0:02:40.3]} 18... cxd4 {[%clk 0:01:24.4]} 19. Ke2 {[%clk 0:02:37.4]}
19... d5 {[%clk 0:01:05.5]} 20. Nc5 {[%clk 0:02:05.1]} 20... dxe3 {[%clk
0:00:58.5]} 21. fxe3 {[%clk 0:01:58.6]} 21... d4 {[%clk 0:00:49.5]} 22. Ne4
{[%clk 0:01:41.3]} 22... Qe7 {[%clk 0:00:39.2]} 23. d3 {[%clk 0:01:32.3]} 23...
Bxe3 {[%clk 0:00:32]} 24. Qxg6 {[%clk 0:01:32.2]} 24... Nf6 {[%clk 0:00:18.9]}
25. Rcf1 {[%clk 0:01:27.3]} 25... Rf8 {[%clk 0:00:15.5]} 26. Kd1 {[%clk
0:01:19]} 26... Qb4 {[%clk 0:00:07]} 27. Rxf6 {[%clk 0:01:15.8]} 27... Rxf6
{[%clk 0:00:07.9]} 28. Nxf6+ {[%clk 0:01:14.6]} 28... Kf8 {[%clk 0:00:07.6]} 29.
Rh8+ {[%clk 0:01:14.2]} 29... Ke7 {[%clk 0:00:07.5]} 30. Nd5+ {[%clk 0:01:14.7]}
1-0

[Event "*** Titled Tuesday Blitz"]
[Site "Chess.com"]
[Date "2020.10.20"]
[Round "1"]
[White "pfalcon1949"]
[Black "Koalaskakistis"]
[Result "0-1"]
[WhiteElo "1990"]
[BlackElo "2467"]
[TimeControl "180+1"]
[EndTime "10:05:58 PDT"]
[Termination "Koalaskakistis won by resignation"]

1. c4 {[%clk 0:02:58.6]} 1... f5 {[%clk 0:02:58.5]} 2. Nc3 {[%clk 0:02:56.9]}
2... Nf6 {[%clk 0:02:58.7]} 3. g3 {[%clk 0:02:57]} 3... e5 {[%clk 0:02:57.3]} 4.
Bg2 {[%clk 0:02:57.4]} 4... g6 {[%clk 0:02:48.4]} 5. d3 {[%clk 0:02:56.4]} 5...
Bg7 {[%clk 0:02:48.2]} 6. e4 {[%clk 0:02:56.5]} 6... fxe4 {[%clk 0:02:34.2]} 7.
dxe4 {[%clk 0:02:53.2]} 7... O-O {[%clk 0:02:33.8]} 8. Nge2 {[%clk 0:02:53.1]}
8... Nc6 {[%clk 0:02:32.6]} 9. O-O {[%clk 0:02:51.5]} 9... d6 {[%clk 0:02:32.5]}
10. Bg5 {[%clk 0:02:50.2]} 10... h6 {[%clk 0:02:32]} 11. Bxf6 {[%clk 0:02:49.6]}
11... Qxf6 {[%clk 0:02:31.3]} 12. Nd5 {[%clk 0:02:50.5]} 12... Qf7 {[%clk
0:02:31.3]} 13. Nec3 {[%clk 0:02:48.7]} 13... Nd4 {[%clk 0:02:30.1]} 14. Rc1
{[%clk 0:02:44.7]} 14... c6 {[%clk 0:02:27.6]} 15. Ne3 {[%clk 0:02:44.1]} 15...
h5 {[%clk 0:02:24.3]} 16. h4 {[%clk 0:02:40.3]} 16... Bh6 {[%clk 0:02:24.1]} 17.
Qd3 {[%clk 0:02:36.5]} 17... Be6 {[%clk 0:02:14.5]} 18. b3 {[%clk 0:02:35.1]}
18... Qe7 {[%clk 0:02:03.3]} 19. Qd1 {[%clk 0:02:18.4]} 19... Rf7 {[%clk
0:02:00.9]} 20. Nc2 {[%clk 0:02:08.1]} 20... Bxc1 {[%clk 0:01:57.7]} 21. Qxc1
{[%clk 0:01:47.8]} 21... Nf3+ {[%clk 0:01:55]} 22. Bxf3 {[%clk 0:01:39.4]} 22...
Rxf3 {[%clk 0:01:55.9]} 23. Ne1 {[%clk 0:01:31.2]} 23... Rf6 {[%clk 0:01:50.2]}
24. Qh6 {[%clk 0:01:28]} 24... Raf8 {[%clk 0:01:48.2]} 25. Ng2 {[%clk
0:01:26.3]} 25... Qg7 {[%clk 0:01:42.4]} 26. Qe3 {[%clk 0:01:19.6]} 26... Rf3
{[%clk 0:01:41]} 27. Qd2 {[%clk 0:01:14.4]} 27... Bh3 {[%clk 0:01:38.7]} 28. Nd1
{[%clk 0:01:11.3]} 28... Qf6 {[%clk 0:01:35.7]} 29. Nde3 {[%clk 0:01:06]} 29...
g5 {[%clk 0:01:23.5]} 30. hxg5 {[%clk 0:01:04.5]} 30... Qxg5 {[%clk 0:01:24.4]}
31. Qxd6 {[%clk 0:00:55.4]} 31... h4 {[%clk 0:01:18.2]} 32. Nxh4 {[%clk
0:00:47.2]} 32... Rxe3 {[%clk 0:01:01.9]} 33. Qg6+ {[%clk 0:00:37.5]} 33... Qxg6
{[%clk 0:01:00.3]} 34. Nxg6 {[%clk 0:00:38.4]} 34... Rxg3+ {[%clk 0:01:00.4]}
0-1

[Event "*** Titled Tuesday Blitz"]
[Site "Chess.com"]
[Date "2020.10.20"]
[Round "1"]
[White "tan275"]
[Black "Malev212"]
[Result "0-1"]
[WhiteElo "2180"]
[BlackElo "2524"]
[TimeControl "180+1"]
[EndTime "10:06:00 PDT"]
[Termination "Malev212 won on time"]

1. d4 {[%clk 0:03:00]} 1... Nf6 {[%clk 0:02:58.5]} 2. c4 {[%clk 0:02:58.9]} 2...
g6 {[%clk 0:02:57.9]} 3. g3 {[%clk 0:02:57]} 3... Bg7 {[%clk 0:02:57.1]} 4. Bg2
{[%clk 0:02:56.5]} 4... O-O {[%clk 0:02:57.5]} 5. Nc3 {[%clk 0:02:56.3]} 5... d6
{[%clk 0:02:56.5]} 6. Nf3 {[%clk 0:02:56.1]} 6... c6 {[%clk 0:02:56.3]} 7. O-O
{[%clk 0:02:55.7]} 7... Qa5 {[%clk 0:02:56.6]} 8. e4 {[%clk 0:02:53.1]} 8... e5
{[%clk 0:02:54.3]} 9. d5 {[%clk 0:02:38.9]} 9... cxd5 {[%clk 0:02:52.4]} 10.
cxd5 {[%clk 0:02:35]} 10... b5 {[%clk 0:02:52.1]} 11. Bg5 {[%clk 0:02:20.5]}
11... b4 {[%clk 0:02:47.3]} 12. Bxf6 {[%clk 0:02:19.1]} 12... Bxf6 {[%clk
0:02:48.2]} 13. Ne2 {[%clk 0:02:14.8]} 13... Nd7 {[%clk 0:02:45.9]} 14. Qd2
{[%clk 0:02:12.8]} 14... Qb6 {[%clk 0:02:39.9]} 15. Qh6 {[%clk 0:01:39.9]} 15...
Bg7 {[%clk 0:02:33.3]} 16. Qd2 {[%clk 0:01:19.1]} 16... Nc5 {[%clk 0:02:31.9]}
17. Ne1 {[%clk 0:01:13.3]} 17... Ba6 {[%clk 0:02:24.1]} 18. Nc2 {[%clk
0:01:12.5]} 18... f5 {[%clk 0:02:19.8]} 19. Rae1 {[%clk 0:00:58.6]} 19... Rab8
{[%clk 0:02:03.2]} 20. exf5 {[%clk 0:00:44.5]} 20... gxf5 {[%clk 0:02:01.7]} 21.
Nc1 {[%clk 0:00:36.4]} 21... Bxf1 {[%clk 0:01:58.7]} 22. Rxf1 {[%clk 0:00:26.7]}
22... b3 {[%clk 0:01:57.8]} 23. axb3 {[%clk 0:00:22.1]} 23... Nxb3 {[%clk
0:01:57.3]} 24. Qg5 {[%clk 0:00:19.5]} 24... Nxc1 {[%clk 0:01:55.3]} 25. Rxc1
{[%clk 0:00:19.9]} 25... Qxb2 {[%clk 0:01:51.9]} 26. Ne1 {[%clk 0:00:17.3]}
26... e4 {[%clk 0:01:49.8]} 27. Rc7 {[%clk 0:00:16]} 27... Rb7 {[%clk
0:01:44.6]} 28. Qe7 {[%clk 0:00:12.9]} 28... Rxc7 {[%clk 0:01:42.6]} 29. Qxc7
{[%clk 0:00:12.9]} 29... Bd4 {[%clk 0:01:41.6]} 30. Nc2 {[%clk 0:00:09]} 30...
Bc5 {[%clk 0:01:40.3]} 31. Ne3 {[%clk 0:00:04.9]} 31... Qc1+ {[%clk 0:01:36.1]}
32. Bf1 {[%clk 0:00:04.7]} 32... Bxe3 {[%clk 0:01:35.7]} 33. fxe3 {[%clk
0:00:05.1]} 33... Qxc7 {[%clk 0:01:34.1]} 0-1

[Event "*** Titled Tuesday Blitz"]
[Site "Chess.com"]
[Date "2020.10.20"]
[Round "1"]
[White "HrvojeZagreb"]
[Black "Heineccius"]
[Result "0-1"]
[WhiteElo "2203"]
[BlackElo "2532"]
[TimeControl "180+1"]
[EndTime "10:06:04 PDT"]
[Termination "Heineccius won by resignation"]

1. d4 {[%clk 0:03:00.9]} 1... Nf6 {[%clk 0:02:59]} 2. Bf4 {[%clk 0:03:00]} 2...
e6 {[%clk 0:02:58.7]} 3. e3 {[%clk 0:03:00]} 3... d5 {[%clk 0:02:58.2]} 4. Nf3
{[%clk 0:02:57.9]} 4... Bd6 {[%clk 0:02:58.4]} 5. Bg3 {[%clk 0:02:57.3]} 5...
O-O {[%clk 0:02:58.1]} 6. Bd3 {[%clk 0:02:53.9]} 6... c5 {[%clk 0:02:57.7]} 7.
c3 {[%clk 0:02:54]} 7... Nc6 {[%clk 0:02:56]} 8. Nbd2 {[%clk 0:02:53.5]} 8... b6
{[%clk 0:02:55.1]} 9. e4 {[%clk 0:02:45]} 9... Be7 {[%clk 0:02:52.6]} 10. e5
{[%clk 0:02:43.2]} 10... Nh5 {[%clk 0:02:51.7]} 11. O-O {[%clk 0:00:42.5]} 11...
a5 {[%clk 0:02:46.8]} 12. Qe2 {[%clk 0:00:41.3]} 12... c4 {[%clk 0:02:31.6]} 13.
Bc2 {[%clk 0:00:40]} 13... b5 {[%clk 0:02:32.1]} 14. Ne1 {[%clk 0:00:35]} 14...
g6 {[%clk 0:02:28.7]} 15. Qe3 {[%clk 0:00:29.3]} 15... b4 {[%clk 0:02:11.1]} 16.
f4 {[%clk 0:00:26.4]} 16... Ng7 {[%clk 0:01:27.6]} 17. Nef3 {[%clk 0:00:17.8]}
17... a4 {[%clk 0:01:24]} 18. a3 {[%clk 0:00:16.2]} 18... bxc3 {[%clk
0:01:21.2]} 19. bxc3 {[%clk 0:00:15.9]} 19... Bd7 {[%clk 0:01:20.4]} 20. Ng5
{[%clk 0:00:15.7]} 20... f6 {[%clk 0:01:17]} 21. exf6 {[%clk 0:00:14.5]} 21...
Bxf6 {[%clk 0:01:17.9]} 22. Rae1 {[%clk 0:00:06.2]} 22... Re8 {[%clk 0:01:15.1]}
23. Ndf3 {[%clk 0:00:06.1]} 23... Nf5 {[%clk 0:00:59.9]} 24. Ne5 {[%clk
0:00:05.9]} 24... Nxe3 {[%clk 0:00:58.9]} 0-1

[Event "*** Titled Tuesday Blitz"]
[Site "Chess.com"]
[Date "2020.10.20"]
[Round "1"]
[White "brunomorado"]
[Black "EvgenyRomanov"]
[Result "1/2-1/2"]
[WhiteElo "2307"]
[BlackElo "2617"]
[TimeControl "180+1"]
[EndTime "10:06:05 PDT"]
[Termination "Game drawn by repetition"]

1. d4 {[%clk 0:02:59.4]} 1... d5 {[%clk 0:02:59.1]} 2. Nc3 {[%clk 0:02:59]} 2...
e6 {[%clk 0:03:00]} 3. e4 {[%clk 0:02:58.9]} 3... Bb4 {[%clk 0:03:00]} 4. Ne2
{[%clk 0:02:58.9]} 4... dxe4 {[%clk 0:02:58.4]} 5. a3 {[%clk 0:02:58.7]} 5...
Be7 {[%clk 0:02:57]} 6. Nxe4 {[%clk 0:02:58.6]} 6... Nc6 {[%clk 0:02:57.6]} 7.
g3 {[%clk 0:02:57.1]} 7... Nf6 {[%clk 0:02:57.2]} 8. Bg2 {[%clk 0:02:57]} 8...
O-O {[%clk 0:02:55.6]} 9. O-O {[%clk 0:02:57]} 9... e5 {[%clk 0:02:38.1]} 10.
Nxf6+ {[%clk 0:02:42.2]} 10... Bxf6 {[%clk 0:02:37.2]} 11. d5 {[%clk 0:02:42.5]}
11... Nd4 {[%clk 0:02:23.6]} 12. Be3 {[%clk 0:02:31.5]} 12... Bg4 {[%clk
0:02:16.5]} 13. f3 {[%clk 0:02:30.4]} 13... Nxe2+ {[%clk 0:02:07.3]} 14. Qxe2
{[%clk 0:02:31.3]} 14... Bf5 {[%clk 0:02:07.1]} 15. Rad1 {[%clk 0:02:23.5]}
15... Re8 {[%clk 0:02:06.1]} 16. Rfe1 {[%clk 0:02:20.8]} 16... Qd7 {[%clk
0:02:01]} 17. Qd2 {[%clk 0:02:09.5]} 17... h6 {[%clk 0:01:58.6]} 18. c3 {[%clk
0:02:07.2]} 18... a5 {[%clk 0:01:56.7]} 19. f4 {[%clk 0:02:06.3]} 19... Rad8
{[%clk 0:01:54]} 20. fxe5 {[%clk 0:02:05.6]} 20... Bxe5 {[%clk 0:01:53.3]} 21.
Bf4 {[%clk 0:02:04.8]} 21... Qd6 {[%clk 0:01:43.3]} 22. Bxe5 {[%clk 0:02:03.1]}
22... Rxe5 {[%clk 0:01:44.2]} 23. Rxe5 {[%clk 0:02:03.4]} 23... Qxe5 {[%clk
0:01:44.3]} 24. Re1 {[%clk 0:02:04.3]} 24... Qd6 {[%clk 0:01:42.2]} 25. Qf2
{[%clk 0:02:02.5]} 25... Bg6 {[%clk 0:01:39.7]} 26. Re3 {[%clk 0:01:56.3]} 26...
c6 {[%clk 0:01:33.3]} 27. c4 {[%clk 0:01:45.5]} 27... cxd5 {[%clk 0:01:28.7]}
28. Bxd5 {[%clk 0:01:44.7]} 28... b5 {[%clk 0:01:28.1]} 29. Qe2 {[%clk 0:01:22]}
29... bxc4 {[%clk 0:01:26.4]} 30. Bxc4 {[%clk 0:01:10.3]} 30... Qc5 {[%clk
0:01:25.9]} 31. Kg2 {[%clk 0:01:07.2]} 31... Bh5 {[%clk 0:01:24.9]} 32. Re8+
{[%clk 0:01:03.8]} 32... Rxe8 {[%clk 0:01:15.5]} 33. Qxe8+ {[%clk 0:01:04.7]}
33... Kh7 {[%clk 0:01:15.8]} 34. Bd3+ {[%clk 0:01:01.9]} 34... Bg6 {[%clk
0:01:15.4]} 35. Bxg6+ {[%clk 0:01:02.1]} 35... Kxg6 {[%clk 0:01:14.3]} 36. Qe4+
{[%clk 0:01:01.8]} 36... f5 {[%clk 0:01:13.6]} 37. Qe6+ {[%clk 0:00:59.5]} 37...
Kh7 {[%clk 0:01:12.9]} 38. b4 {[%clk 0:00:55.3]} 38... axb4 {[%clk 0:00:56.4]}
39. axb4 {[%clk 0:00:56.2]} 39... Qxb4 {[%clk 0:00:56.5]} 40. Qxf5+ {[%clk
0:00:55.8]} 40... Kg8 {[%clk 0:00:56.8]} 41. Qe6+ {[%clk 0:00:55.5]} 41... Kh7
{[%clk 0:00:56.9]} 42. Qf5+ {[%clk 0:00:55.8]} 42... Kg8 {[%clk 0:00:57.1]} 43.
Qe6+ {[%clk 0:00:56.2]} 43... Kh7 {[%clk 0:00:57.4]} 44. Qf5+ {[%clk 0:00:56.8]}
1/2-1/2

[Event "*** Titled Tuesday Blitz"]
[Site "Chess.com"]
[Date "2020.10.20"]
[Round "1"]
[White "plumalka"]
[Black "VerdeNotte"]
[Result "0-1"]
[WhiteElo "2420"]
[BlackElo "2847"]
[TimeControl "180+1"]
[EndTime "10:06:10 PDT"]
[Termination "VerdeNotte won by resignation"]

1. e4 {[%clk 0:03:00.9]} 1... e5 {[%clk 0:02:55.5]} 2. Nf3 {[%clk 0:03:00.5]}
2... Nc6 {[%clk 0:02:55.8]} 3. Nc3 {[%clk 0:03:00.6]} 3... g6 {[%clk 0:02:55.4]}
4. d4 {[%clk 0:02:59.7]} 4... exd4 {[%clk 0:02:55.9]} 5. Nxd4 {[%clk 0:03:00.6]}
5... Bg7 {[%clk 0:02:56.3]} 6. Nde2 {[%clk 0:02:58.7]} 6... Nf6 {[%clk
0:02:49.7]} 7. g3 {[%clk 0:02:58.4]} 7... d6 {[%clk 0:02:45.4]} 8. Bg2 {[%clk
0:02:58.4]} 8... O-O {[%clk 0:02:41.8]} 9. O-O {[%clk 0:02:57.4]} 9... Re8
{[%clk 0:02:42.3]} 10. Bg5 {[%clk 0:02:44.9]} 10... h6 {[%clk 0:02:41.7]} 11.
Bxf6 {[%clk 0:02:45]} 11... Bxf6 {[%clk 0:02:36.9]} 12. Qd2 {[%clk 0:02:43.5]}
12... h5 {[%clk 0:02:35.4]} 13. Nf4 {[%clk 0:02:35.3]} 13... Ne5 {[%clk
0:02:28.6]} 14. Nfd5 {[%clk 0:02:33.8]} 14... Bg7 {[%clk 0:02:21.4]} 15. Rae1
{[%clk 0:02:29.6]} 15... Nc4 {[%clk 0:02:14.9]} 16. Qc1 {[%clk 0:02:29.4]} 16...
c6 {[%clk 0:02:13.1]} 17. Ne3 {[%clk 0:02:26.2]} 17... Be6 {[%clk 0:02:13.2]}
18. b3 {[%clk 0:02:24.3]} 18... Bxc3 {[%clk 0:02:11.2]} 19. bxc4 {[%clk
0:02:21.6]} 19... Bxe1 {[%clk 0:02:09.9]} 20. Qxe1 {[%clk 0:02:21.4]} 20... Qb6
{[%clk 0:02:05.6]} 21. Qc3 {[%clk 0:02:14.9]} 21... a5 {[%clk 0:02:02.7]} 22. a3
{[%clk 0:02:14.2]} 22... Qc5 {[%clk 0:02:00.9]} 23. Kh1 {[%clk 0:02:06.2]} 23...
b5 {[%clk 0:02:00.4]} 24. f4 {[%clk 0:01:59.1]} 24... b4 {[%clk 0:01:58]} 25.
axb4 {[%clk 0:01:55.4]} 25... axb4 {[%clk 0:01:58.9]} 26. Qd2 {[%clk 0:01:48]}
26... Bxc4 {[%clk 0:01:51]} 27. Nxc4 {[%clk 0:01:44.7]} 27... Qxc4 {[%clk
0:01:51.9]} 28. f5 {[%clk 0:01:45.1]} 28... Qc3 {[%clk 0:01:49.3]} 29. Qg5
{[%clk 0:01:43.3]} 29... Ra5 {[%clk 0:01:37.4]} 30. g4 {[%clk 0:01:36.2]} 30...
hxg4 {[%clk 0:01:28.4]} 31. Qxg4 {[%clk 0:01:37.1]} 31... Qg7 {[%clk 0:01:23]}
32. Qd1 {[%clk 0:01:21.4]} 32... Qf6 {[%clk 0:01:02]} 33. Bh3 {[%clk 0:01:12.2]}
33... g5 {[%clk 0:01:00.5]} 34. Qg4 {[%clk 0:01:05.3]} 34... Ra1 {[%clk
0:00:55.8]} 35. Rxa1 {[%clk 0:00:56.5]} 35... Qxa1+ {[%clk 0:00:56.7]} 36. Kg2
{[%clk 0:00:56.9]} 36... Qc1 {[%clk 0:00:55.5]} 37. Qe2 {[%clk 0:00:55.2]} 37...
Qf4 {[%clk 0:00:51.6]} 38. Qh5 {[%clk 0:00:43.2]} 38... Qxe4+ {[%clk 0:00:50.2]}
0-1

[Event "*** Titled Tuesday Blitz"]
[Site "Chess.com"]
[Date "2020.10.20"]
[Round "1"]
[White "joppie2"]
[Black "mjray79"]
[Result "1-0"]
[WhiteElo "2874"]
[BlackElo "2429"]
[TimeControl "180+1"]
[EndTime "10:06:14 PDT"]
[Termination "joppie2 won by resignation"]

1. e4 {[%clk 0:03:00.9]} 1... e5 {[%clk 0:02:59.4]} 2. Nf3 {[%clk 0:03:01]} 2...
Nc6 {[%clk 0:02:59.5]} 3. c3 {[%clk 0:03:01.2]} 3... Nf6 {[%clk 0:02:43.7]} 4.
d4 {[%clk 0:03:00.9]} 4... exd4 {[%clk 0:02:40.6]} 5. e5 {[%clk 0:03:00.9]} 5...
Nd5 {[%clk 0:02:29.3]} 6. cxd4 {[%clk 0:02:59.8]} 6... d6 {[%clk 0:02:21.5]} 7.
Bc4 {[%clk 0:02:50.9]} 7... Nb6 {[%clk 0:02:13.7]} 8. Bb5 {[%clk 0:02:49.5]}
8... Bd7 {[%clk 0:02:05.5]} 9. exd6 {[%clk 0:02:45]} 9... Bxd6 {[%clk
0:02:04.3]} 10. O-O {[%clk 0:02:45.6]} 10... O-O {[%clk 0:02:03.5]} 11. Nc3
{[%clk 0:02:46]} 11... a6 {[%clk 0:01:59]} 12. Be2 {[%clk 0:02:45.3]} 12... Bg4
{[%clk 0:01:56.4]} 13. h3 {[%clk 0:02:45.4]} 13... Bf5 {[%clk 0:01:50.5]} 14. d5
{[%clk 0:02:45.3]} 14... Ne7 {[%clk 0:01:48.2]} 15. Bg5 {[%clk 0:02:40.3]} 15...
f6 {[%clk 0:01:47.1]} 16. Be3 {[%clk 0:02:40.5]} 16... Kh8 {[%clk 0:01:33.5]}
17. Nd4 {[%clk 0:02:39.2]} 17... Bd7 {[%clk 0:01:12]} 18. Bf3 {[%clk 0:02:37.9]}
18... Qc8 {[%clk 0:01:09.5]} 19. Re1 {[%clk 0:02:34.8]} 19... Nc4 {[%clk
0:01:08.8]} 20. Ne6 {[%clk 0:02:32.6]} 20... Rg8 {[%clk 0:00:59.9]} 21. Bd4
{[%clk 0:02:31.7]} 21... Nxb2 {[%clk 0:00:59.7]} 22. Qc2 {[%clk 0:02:25.9]}
22... Nc4 {[%clk 0:00:58.9]} 23. Re4 {[%clk 0:02:25.6]} 23... Ne5 {[%clk
0:00:53.5]} 24. Bxe5 {[%clk 0:02:21]} 24... Bxe5 {[%clk 0:00:52.3]} 25. Rh4
{[%clk 0:02:21.9]} 25... g6 {[%clk 0:00:49.6]} 26. Nc5 {[%clk 0:02:14.9]} 26...
Bf5 {[%clk 0:00:48.8]} 27. Qb3 {[%clk 0:02:10.9]} 27... g5 {[%clk 0:00:40.9]}
28. Rc4 {[%clk 0:02:10.6]} 28... b5 {[%clk 0:00:39.4]} 29. Rb4 {[%clk
0:02:09.4]} 29... Ng6 {[%clk 0:00:35]} 30. Ne6 {[%clk 0:02:07.3]} 30... Re8
{[%clk 0:00:32.8]} 31. Bg4 {[%clk 0:02:05.7]} 31... Bxg4 {[%clk 0:00:30.6]} 32.
hxg4 {[%clk 0:02:06.6]} 32... Nf4 {[%clk 0:00:30.7]} 33. Nxf4 {[%clk 0:02:06.8]}
33... Bxf4 {[%clk 0:00:31.6]} 34. g3 {[%clk 0:02:07.3]} 34... Bd6 {[%clk
0:00:30.5]} 35. Re4 {[%clk 0:02:05.7]} 35... Rxe4 {[%clk 0:00:30.2]} 36. Nxe4
{[%clk 0:02:06.6]} 36... Qxg4 {[%clk 0:00:30.2]} 37. Nxf6 {[%clk 0:02:06]} 37...
Qf5 {[%clk 0:00:30.1]} 38. Nh5 {[%clk 0:02:04.4]} 38... Rf8 {[%clk 0:00:29.6]}
39. Rf1 {[%clk 0:02:00.8]} 39... Be5 {[%clk 0:00:27.4]} 40. Qb4 {[%clk
0:01:58.5]} 40... g4 {[%clk 0:00:24.4]} 41. Qe7 {[%clk 0:01:56]} 41... Rg8
{[%clk 0:00:20]} 42. Re1 {[%clk 0:01:56.5]} 42... Bd6 {[%clk 0:00:17.6]} 43. Qh4
{[%clk 0:01:56.1]} 43... Qg5 {[%clk 0:00:15.2]} 44. Qh2 {[%clk 0:01:52.3]} 44...
Rf8 {[%clk 0:00:14.3]} 45. Rd1 {[%clk 0:01:48.2]} 45... Bc5 {[%clk 0:00:13.6]}
46. Rf1 {[%clk 0:01:46.8]} 46... Qxd5 {[%clk 0:00:13.5]} 47. Nf4 {[%clk
0:01:47.4]} 47... Qf3 {[%clk 0:00:13]} 48. Ng6+ {[%clk 0:01:45.4]} 48... Kg7
{[%clk 0:00:12]} 49. Nxf8 {[%clk 0:01:46.3]} 49... Qxf8 {[%clk 0:00:12.5]} 50.
Qh4 {[%clk 0:01:46.4]} 50... Qf3 {[%clk 0:00:12.2]} 51. Qg5+ {[%clk 0:01:46.5]}
1-0